fUSD/lending_fUSD_20260130
["ID","MTS","AMOUNT","RATE_DAILY","PERIOD"]
[404086299,1769801247480,-158.82094085,0.00017515,2]
[404086300,1769801247514,-280.03725112,0.00017524,2]
[404086301,1769801247541,-500.0,0.00017539,2]
[404086302,1769801247569,-500.0,0.00017539,2]
[404086303,1769801247600,-1821.22262278,0.00017543,2]
[404086304,1769801247633,-290.39862941,0.00017579,2]
[404086305,1769801247665,-1821.22262271,0.00017583,2]
[404086306,1769801247699,-1821.22262271,0.00017622,2]
[404086307,1769801247731,-885.86649465,0.00017632,2]
[404086308,1769801247797,-301.1433787,0.00017634,2]
[404086309,1769801247853,-1145.50076329,0.0001764,2]
[404086310,1769801247895,-1552.92743723,0.0001764,2]
[404086311,1769801247928,-457.29474664,0.0001764,2]
[404086312,1769801247963,-284.66952974,0.00017643,2]
[404086313,1769801248032,-751.24739289,0.00017643,2]
[404086314,1769801248082,-1325.28944926,0.00017643,2]
[404086315,1769801248123,-1982.55375573,0.00017643,2]
[404086316,1769801248190,-2682.4644,0.00017643,2]
[404086317,1769801248259,-1000.0,0.00017657,2]
[404086318,1769801248311,-1821.22262271,0.00017662,2]
[404086319,1769801248356,-5596.0,0.00017669,2]
[404086320,1769801248399,-500.0,0.00017699,2]
[404086321,1769801248472,-150.0,0.00017699,2]
[404086322,1769801248512,-500.0,0.00017699,2]
[404086323,1769801248557,-150.0,0.00017699,2]
[404086324,1769801248598,-1821.22262271,0.00017702,2]
[404086325,1769801248657,-5888.0,0.00017722,2]
[404086326,1769801248741,-1821.22262271,0.00017741,2]
[404086327,1769801248793,-733.99649203,0.00017742,2]
[404086328,1769801248838,-500.0,0.00017754,2]
[404086329,1769801248884,-150.0,0.00017754,2]
[404086330,1769801248925,-500.0,0.00017754,2]
[404086331,1769801248979,-150.0,0.00017754,2]
[404086332,1769801249060,-500.0,0.00017759,2]
[404086333,1769801249139,-500.0,0.00017759,2]
[404086334,1769801249206,-1698.114,0.00017769,2]
[404086335,1769801249282,-175.051,0.00017769,2]
[404086336,1769801249344,-1821.22262271,0.00017781,2]
[404086337,1769801249430,-2500.0,0.000178,2]
[404086338,1769801249560,-500.0,0.00017809,2]
[404086339,1769801249609,-200.0,0.00017809,2]
[404086340,1769801249638,-500.0,0.00017809,2]
[404086341,1769801249676,-150.0,0.00017809,2]
[404086342,1769801249728,-460.64092,0.0001782,2]
[404086343,1769801249808,-460.64093,0.0001782,2]
[404086344,1769801249863,-1821.22262271,0.00017821,2]
[404086345,1769801249976,-200.0,0.00017856,2]
[404086346,1769801250052,-1821.22262271,0.0001786,2]
[404086347,1769801250141,-500.0,0.00017862,2]
[404086348,1769801250250,-500.0,0.00017862,2]
[404086349,1769801250350,-500.0,0.00017862,2]
[404086350,1769801250394,-186.71741721,0.00017862,2]
[404086351,1769801250431,-500.0,0.00017862,2]
[404086352,1769801250502,-500.0,0.00017862,2]
[404086353,1769801250580,-500.0,0.00017862,2]
[404086354,1769801250652,-500.0,0.00017862,2]
[404086355,1769801250735,-500.0,0.00017862,2]
[404086356,1769801250872,-500.0,0.00017862,2]
[404086357,1769801250917,-403.24240059,0.00017862,2]
[404086358,1769801250983,-500.0,0.00017862,2]
[404086359,1769801251079,-500.0,0.00017862,2]
[404086360,1769801251146,-500.0,0.00017862,2]
[404086361,1769801251206,-500.0,0.00017862,2]
[404086362,1769801251320,-500.0,0.00017862,2]
[404086363,1769801251390,-596.98801809,0.00017863,2]
[404086364,1769801251468,-500.0,0.00017863,2]
[404086365,1769801251549,-150.0,0.00017863,2]
[404086366,1769801251668,-10000.0,0.00017873,2]
[404086367,1769801251723,-1680.0,0.00017874,2]
[404086368,1769801251800,-563.52650006,0.00017899,2]
[404086369,1769801251878,-500.0,0.00017899,2]
[404086370,1769801251939,-165.35600481,0.00017899,2]
[404086371,1769801252004,-165.3560048,0.00017899,2]
[404086372,1769801252083,-2122.42238331,0.00017899,2]
[404086373,1769801252150,-2122.42238331,0.00017899,2]
[404086374,1769801252197,-165.3560048,0.000179,2]
[404086375,1769801252271,-2122.42238331,0.000179,2]
[404086376,1769801252362,-2122.42238331,0.000179,2]
[404086377,1769801252427,-165.3560048,0.000179,2]
[404086378,1769801252533,-2122.42238331,0.000179,2]
[404086379,1769801252571,-2122.42238331,0.000179,2]
[404086380,1769801252643,-627.64708773,0.000179,2]
[404086381,1769801252744,-2122.42238331,0.000179,2]
[404086382,1769801252831,-165.3560048,0.000179,2]
[404086383,1769801252885,-1821.22262271,0.000179,2]
[404086384,1769801252939,-2333.67975407,0.000179,2]
[404086385,1769801253003,-500.0,0.00017918,2]
[404086386,1769801253061,-150.0,0.00017918,2]
[404086387,1769801253116,-1000.0,0.00017931,2]
[404086388,1769801253201,-5888.0,0.00017952,2]
[404086389,1769801253293,-154.9,0.00017955,2]
[404086390,1769801253385,-500.0,0.00017973,2]
[404086391,1769801253443,-505.13238657,0.00017973,2]
[404086392,1769801253507,-500.0,0.00017973,2]
[404086393,1769801253560,-500.0,0.00017973,2]
[404086394,1769801253611,-500.0,0.00017973,2]
[404086395,1769801253657,-502.36550973,0.00017973,2]
[404086396,1769801253716,-500.0,0.00017973,2]
[404086397,1769801253813,-500.0,0.00017973,2]
[404086398,1769801253852,-500.0,0.00017973,2]
[404086399,1769801253913,-288.05199057,0.00017973,2]
[404086400,1769801253981,-195.80691697,0.00017973,2]
[404086401,1769801254038,-500.0,0.00017973,2]
[404086402,1769801254081,-500.0,0.00017973,2]
[404086403,1769801254141,-500.0,0.00017973,2]
[404086404,1769801254198,-500.0,0.00017973,2]
[404086405,1769801254288,-500.0,0.00017973,2]
[404086406,1769801254358,-500.0,0.00017973,2]
[404086407,1769801254450,-500.0,0.00017973,2]
[404086408,1769801254583,-500.0,0.00017973,2]
[404086409,1769801254643,-593.37800921,0.00017973,2]
[404086410,1769801254724,-500.0,0.00017973,2]
[404086411,1769801254767,-500.0,0.00017973,2]
[404086412,1769801254845,-500.0,0.00017973,2]
[404086413,1769801254928,-500.0,0.00017973,2]
[404086414,1769801255013,-500.0,0.00017973,2]
[404086415,1769801255073,-500.0,0.00017973,2]
[404086416,1769801255128,-501.7423367,0.00017973,2]
[404086417,1769801255176,-500.0,0.00017973,2]
[404086418,1769801255222,-500.0,0.00017973,2]
[404086419,1769801255273,-500.0,0.00017973,2]
[404086420,1769801255310,-500.0,0.00017973,2]
[404086421,1769801255352,-500.0,0.00017973,2]
[404086422,1769801255392,-502.15998223,0.00017973,2]
[404086423,1769801255425,-500.0,0.00017973,2]
[404086424,1769801255458,-500.0,0.00017973,2]
[404086425,1769801255491,-500.0,0.00017973,2]
[404086426,1769801255521,-500.0,0.00017973,2]
[404086427,1769801255553,-500.0,0.00017973,2]
[404086428,1769801255588,-441.59041391,0.00017973,2]
[404086429,1769801255618,-500.0,0.00017973,2]
[404086430,1769801255646,-150.0,0.00017973,2]
[404086431,1769801255676,-4760.41902997,0.0001799,3]
[404086432,1769801284086,-151.0,0.00016252,2]
[404086433,1769801284112,-151.0,0.00016252,2]
[404086434,1769801308260,564.63782478,0.00015,3]
[404086435,1769801318584,673.83,0.0001,2]
[404086436,1769801318607,10000.0,0.0001,2]
[404086437,1769801318631,1393.98098291,0.0001,2]
[404086448,1769801432383,-900.0,0.00015,3]
[404086449,1769801432396,-1182.79273477,0.00015,3]
[404086450,1769801432426,-631.40074476,0.00015,3]
[404086451,1769801432439,-294.30278681,0.00015,3]
[404086452,1769801432450,-130.42682772,0.00016091,2]
[404086453,1769801432463,-20.57317228,0.00016091,2]
[404086454,1769801432475,-151.0,0.00016091,2]
[404086455,1769801432487,-497.6824,0.00016273,2]
[404086456,1769801432502,-436.74360326,0.00016312,2]
[404086457,1769801432513,-646.63782478,0.00016363,2]
[404086458,1769801432524,-1200.0,0.00016372,2]
[404086459,1769801432534,-500.0,0.00016373,2]
[404086460,1769801432548,-191.36437014,0.00016373,2]
[404086462,1769801432561,-308.63562986,0.00016373,2]
[404086464,1769801432572,-500.0,0.00016373,2]
[404086466,1769801432581,-500.0,0.00016373,2]
[404086467,1769801432591,-500.0,0.00016373,2]
[404086500,1769801432900,-500.0,0.00016373,2]
[404086503,1769801432915,-500.0,0.00016373,2]
[404086504,1769801432928,-239.86,0.00016571,2]
[404086507,1769801432940,-679.01384899,0.00016921,2]
[404086508,1769801432954,-117.5404249,0.00016921,2]
[404086511,1769801432968,-1000.0,0.00016921,2]
[404086513,1769801432984,-339.60098248,0.00016921,2]
[404086515,1769801432994,-613.56434793,0.00016921,2]
[404086517,1769801433006,-636.72671508,0.00016984,2]
[404086519,1769801433016,-151.0,0.00016997,2]
[404086521,1769801433027,-2325.10752961,0.00017,2]
[404086596,1769801438470,-151.0,0.00016116,2]
[404086597,1769801438480,-2591.63554419,0.00017,2]
[404086598,1769801438492,-19095.92117219,0.00017,2]
[404086652,1769801441309,-315051.51423703,0.00017,2]
[404086653,1769801441319,-2387.52939455,0.00017,2]
[404086654,1769801441329,-163.0,0.0001704,2]
[404086655,1769801441339,-174.61919141,0.00017084,2]
[404086656,1769801441349,-1000.0,0.00017084,2]
[404086657,1769801441358,-3000.0,0.00017084,2]
[404086658,1769801441367,-500.0,0.00017084,2]
[404086659,1769801441376,-2500.0,0.00017084,2]
[404086660,1769801441386,-500.0,0.00017084,2]
[404086661,1769801441395,-500.0,0.00017084,2]
[404086662,1769801441408,-500.0,0.00017084,2]
[404086663,1769801441418,-500.0,0.00017084,2]
[404086664,1769801441427,-250.0,0.00017084,2]
[404086665,1769801441439,-209.40437684,0.00017084,2]
[404086666,1769801441449,-578.20924308,0.00017084,2]
[404086667,1769801441458,-636.72671499,0.00017086,2]
[404086668,1769801441469,-217.15233878,0.00017139,2]
[404086669,1769801441478,-636.72671499,0.00017188,2]
[404086670,1769801441487,-225.18697532,0.00017194,2]
[404086671,1769801441496,-233.51889341,0.00017249,2]
[404086672,1769801441507,-636.72671499,0.00017289,2]
[404086673,1769801441517,-242.15909246,0.00017304,2]
[404086674,1769801441527,-251.11897888,0.00017359,2]
[404086675,1769801441536,-163.0,0.0001736,2]
[404086676,1769801441545,-165.0,0.0001736,2]
[404086677,1769801441555,-636.72671499,0.00017391,2]
[404086678,1769801441565,-260.4103811,0.00017414,2]
[404086679,1769801441574,-1500.0,0.00017468,2]
[404086680,1769801441583,-270.0455652,0.00017469,2]
[404086681,1769801441592,-636.72671499,0.00017493,2]
[404086682,1769801441601,-158.82094085,0.00017524,2]
[404086683,1769801441612,-280.03725112,0.00017524,2]
[404086684,1769801441622,-176.19012263,0.00017528,2]
[404086685,1769801441632,-263.56988621,0.00017528,2]
[404086686,1769801441641,-356.6178,0.00017528,2]
[404086687,1769801441651,-290.39862941,0.00017579,2]
[404086688,1769801441660,-636.72671499,0.00017595,2]
[404086689,1769801441670,-181.08010149,0.00017632,2]
[404086690,1769801441679,-301.1433787,0.00017634,2]
[404086691,1769801441688,-228.64737332,0.0001764,2]
[404086692,1769801441697,-636.72671499,0.00017696,2]
[404086693,1769801441706,-1000.0,0.00017773,2]
[404086694,1769801441716,-636.72671499,0.00017798,2]
[404086695,1769801441725,-460.64093,0.0001782,2]
[404086696,1769801441734,-460.64093,0.0001782,2]
[404086697,1769801441744,-460.64092,0.0001782,2]
[404086698,1769801441753,-460.64092,0.0001782,2]
[404086699,1769801441764,-10000.0,0.000179,2]
[404086700,1769801441774,-636.72671499,0.000179,2]
[404086701,1769801441783,-1762.00060636,0.000179,2]
[404086702,1769801441792,-212.08876731,0.000179,2]
[404086703,1769801441804,-1000.0,0.00017931,2]
[404086704,1769801441815,-500.0,0.00017973,2]
[404086705,1769801441824,-500.0,0.00017973,2]
[404086706,1769801441833,-500.0,0.00017973,2]
[404086707,1769801441843,-239.30964513,0.00017973,2]
[404086708,1769801441857,-500.0,0.00017973,2]
[404086709,1769801441866,-500.0,0.00017973,2]
[404086710,1769801441876,-500.0,0.00017973,2]
[404086711,1769801441885,-500.0,0.00017973,2]
[404086712,1769801441895,-500.0,0.00017973,2]
[404086713,1769801441905,-500.0,0.00017973,2]
[404086714,1769801441915,-500.0,0.00017973,2]
[404086715,1769801441925,-500.0,0.00017973,2]
[404086716,1769801441934,-500.0,0.00017973,2]
[404086717,1769801441943,-500.0,0.00017973,2]
[404086718,1769801441953,-643.5873001,0.00017973,2]
[404086719,1769801441964,-1680.0,0.00017982,2]
[404086720,1769801441974,-500.0,0.00017989,2]
[404086721,1769801441983,-166.70580827,0.00017989,2]
[404086722,1769801441992,-366.58828418,0.00017989,2]
[404086723,1769801442002,-304.05606758,0.00017989,2]
[404086724,1769801442011,-500.0,0.00017989,2]
[404086725,1769801442021,-500.0,0.00017989,2]
[404086726,1769801442031,-170.19906014,0.00017989,2]
[404086727,1769801442041,-500.0,0.00017989,2]
[404086728,1769801442051,-500.0,0.00017989,2]
[404086729,1769801442061,-167.01161303,0.00017989,2]
[404086730,1769801442071,-128393.94086049,0.0001799,3]
[404086731,1769801442080,-151.0,0.00017996,2]
[404086732,1769801442090,-151.0,0.00017996,2]
[404086733,1769801442099,-151.0,0.00017997,2]
[404086734,1769801442108,-1553.0,0.00017999,2]
[404086735,1769801442118,-16270.0753646,0.00017999,2]
[404086736,1769801442127,-500.0,0.00017999,2]
[404086737,1769801442136,-3045.1622112,0.00017999,2]
[404086738,1769801442146,-300.0,0.00017999,2]
[404086739,1769801442155,-1126.3274662,0.00017999,2]
[404086740,1769801442165,-37365.01957556,0.00017999,2]
[404086741,1769801442194,-91698.13312183,0.00017999,2]
[404086742,1769801442707,-3398.94524865,0.00017999,2]
[404086743,1769801442720,-2542.23565072,0.00017999,2]
[404086744,1769801442731,-2313.39619391,0.00017999,2]
[404086745,1769801442753,-484.67440791,0.00017999,2]
[404086746,1769801442765,-1689.634,0.00017999,2]
[404086747,1769801442776,-21090.75,0.00017999,2]
[404086755,1769801443473,-151.0,0.00016145,2]
[404086756,1769801443483,-594392.58576432,0.00017999,2]
[404086757,1769801443493,-500.0,0.00017999,2]
[404086758,1769801443502,-500.0,0.00017999,2]
[404086759,1769801443511,-500.0,0.00017999,2]
[404086760,1769801443521,-3394.5675762,0.00017999,2]
[404086761,1769801443531,-300.0,0.00017999,2]
[404086762,1769801443540,-500.0,0.00017999,2]
[404086763,1769801443549,-300.0,0.00017999,2]
[404086764,1769801443559,-300.0,0.00017999,2]
[404086765,1769801443568,-300.0,0.00017999,2]
[404086766,1769801443578,-660.03,0.00017999,2]
[404086767,1769801443587,-1653277.83344339,0.00018,2]
[404086768,1769801443608,-3014.04108609,0.00018,2]
[404086789,1769801446237,-2427.18089387,0.00018,2]
[404086790,1769801446249,-17053.92559922,0.00018,2]
[404086791,1769801446350,-27520.00000004,0.00018,2]
[404086792,1769801446362,-2949.11515024,0.00018,2]
[404086793,1769801446406,-1672.46,0.00018,2]
[404086815,1769802632182,-159.44,0.00013162,2]
[404086816,1769802632192,-183.95,0.00015671,2]
[404086817,1769802632204,-151.80096835,0.00016373,2]
[404086818,1769802632235,-348.19903165,0.00016373,2]
[404086819,1769802632246,-500.0,0.00016373,2]
[404086820,1769802632255,-500.0,0.00016373,2]
[404086821,1769802632264,-120.47152913,0.00016438,2]
[404086822,1769802632275,-1336.82847087,0.00016438,2]
[404086823,1769802632283,-200.0,0.00016476,2]
[404086824,1769802632292,-150.0,0.00016489,2]
[404086825,1769802632301,-500.0,0.00016511,2]
[404086826,1769802632311,-423.76,0.00016517,2]
[404086827,1769802632320,-1200.0,0.00016517,2]
[404086828,1769802632329,-995.71150913,0.00016518,2]
[404086829,1769802632355,-276.65889505,0.00016518,2]
[404086830,1769802632395,-227.62959582,0.00016518,2]
[404086831,1769802632405,-849.49373326,0.00016643,2]
[404086832,1769802632415,-974.17884844,0.00016643,2]
[404086833,1769802632426,-867.29465335,0.00016643,2]
[404086834,1769802632437,-339.75260614,0.00016643,2]
[404086835,1769802632449,-915.05370722,0.00016643,2]
[404086836,1769802632460,-311.245,0.00016643,2]
[404087071,1769802638255,-294.75853079,0.00016643,2]
[404087072,1769802638267,-581.1401268,0.00016643,2]
[404087073,1769802638413,-1931.45747354,0.00016643,2]
[404087076,1769802638424,-1178.996658,0.00016643,2]
[404087180,1769802640455,-360.874,0.00016643,2]
[404087181,1769802640520,-6171.93466246,0.00016643,2]
[404087182,1769802640530,-747.9297878,0.000169,2]
[404087183,1769802640610,-252.0702122,0.000169,2]
[404087184,1769802640619,-150.0,0.000169,2]
[404087185,1769802640629,-150.99,0.000169,2]
[404087186,1769802640638,-205.48158744,0.000169,2]
[404087187,1769802640649,-334.3262,0.000169,2]
[404087189,1769802640668,-763.45759774,0.000169,2]
[404087215,1769802643387,-8696.72461482,0.000169,2]
[404087216,1769802643395,-1000.0,0.00016921,2]
[404087217,1769802643405,-1000.0,0.00016921,2]
[404087218,1769802643414,-1000.0,0.0001694,2]
[404087219,1769802643423,-3240.0,0.00016972,2]
[404087220,1769802643432,-200.0,0.00016983,2]
[404087221,1769802643441,-250.0,0.00017,2]
[404087222,1769802643451,-2833.0,0.0001704,2]
[404087223,1769802643460,-322.6107,0.00017089,2]
[404087224,1769802643469,-174.61919141,0.00017089,2]
[404087225,1769802643480,-209.40437684,0.00017089,2]
[404087226,1769802643489,-220.46738781,0.00017089,2]
[404087227,1769802643499,-414.05,0.00017105,2]
[404087228,1769802643508,-200.0,0.00017108,2]
[404087229,1769802643517,-423.76,0.00017136,2]
[404087230,1769802643526,-217.15233878,0.00017144,2]
[404087231,1769802643538,-209.40437684,0.00017147,2]
[404087232,1769802643548,-162.69038331,0.00017147,2]
[404087233,1769802643557,-854.2589148,0.00017147,2]
[404087234,1769802643567,-270.15961646,0.00017147,2]
[404087235,1769802643576,-500.0,0.00017147,2]
[404087236,1769802643586,-4222.02,0.00017147,2]
[404087237,1769802643906,-225.18697532,0.00017199,2]
[404087239,1769802643918,-233.51889341,0.00017254,2]
[404087241,1769802643927,-500.0,0.0001726,2]
[404087242,1769802643937,-187.67,0.00017279,2]
[404087243,1769802643947,-242.15909246,0.00017309,2]
[404087244,1769802643956,-251.11897888,0.00017364,2]
[404087245,1769802643966,-1000.0,0.00017383,2]
[404087247,1769802643978,-260.4103811,0.00017419,2]
[404087249,1769802643988,-1500.0,0.00017468,2]
[404087251,1769802643998,-1495.12289102,0.00017468,2]
[404087253,1769802644008,-270.0455652,0.00017474,2]
[404087255,1769802644017,-500.0,0.00017479,2]
[404087257,1769802644027,-158.85685891,0.00017526,2]
[404087259,1769802644036,-280.03725112,0.00017529,2]
[404087261,1769802644046,-200.0,0.00017541,2]
[404087263,1769802644055,-5433.0,0.00017568,2]
[404087265,1769802644064,-290.39862941,0.00017584,2]
[404087267,1769802644073,-181.08010149,0.00017637,2]
[404087269,1769802644083,-301.1433787,0.00017639,2]
[404087271,1769802644092,-228.64737332,0.0001764,2]
[404087273,1769802644101,-1999.0,0.00017657,2]
[404087275,1769802644111,-5433.0,0.00017683,2]
[404087277,1769802644121,-885.86649465,0.00017695,2]
[404087279,1769802644131,-207.69124521,0.00017695,2]
[404087281,1769802644140,-5433.0,0.00017729,2]
[404087282,1769802644149,-1358.491,0.00017748,2]
[404087283,1769802644158,-175.051,0.00017748,2]
[404087284,1769802644167,-423.76,0.00017755,2]
[404087285,1769802644177,-444.86620083,0.00017798,2]
[404087286,1769802644186,-5433.0,0.000178,2]
[404087287,1769802644196,-5433.0,0.00017839,2]
[404087288,1769802644209,-440.5001516,0.000179,2]
[404087289,1769802644219,-200.0,0.00017963,2]
[404087290,1769802644229,-500.0,0.00017973,2]
[404087291,1769802644239,-500.0,0.00017973,2]
[404087292,1769802644249,-502.7983438,0.00017973,2]
[404087293,1769802644259,-500.0,0.00017973,2]
[404087294,1769802644269,-500.0,0.00017973,2]
[404087295,1769802644279,-500.0,0.00017973,2]
[404087296,1769802644288,-500.0,0.00017973,2]
[404087297,1769802644297,-500.0,0.00017973,2]
[404087298,1769802644307,-500.0,0.00017973,2]
[404087299,1769802644316,-500.0,0.00017973,2]
[404087300,1769802644327,-500.0,0.00017973,2]
[404087301,1769802644336,-500.0,0.00017973,2]
[404087302,1769802644346,-500.0,0.00017973,2]
[404087303,1769802644355,-500.0,0.00017973,2]
[404087304,1769802644364,-500.0,0.00017973,2]
[404087305,1769802644373,-500.0,0.00017973,2]
[404087306,1769802644382,-500.0,0.00017973,2]
[404087307,1769802644391,-500.0,0.00017973,2]
[404087308,1769802644400,-500.0,0.00017973,2]
[404087309,1769802644410,-500.0,0.00017973,2]
[404087310,1769802644419,-500.0,0.00017973,2]
[404087311,1769802644428,-500.0,0.00017973,2]
[404087312,1769802644437,-500.0,0.00017973,2]
[404087313,1769802644447,-582.33207666,0.00017973,2]
[404087314,1769802644456,-500.0,0.00017973,2]
[404087315,1769802644466,-500.0,0.00017973,2]
[404087316,1769802644476,-500.0,0.00017973,2]
[404087317,1769802644484,-500.0,0.00017973,2]
[404087318,1769802644494,-500.0,0.00017973,2]
[404087319,1769802644503,-500.0,0.00017973,2]
[404087320,1769802644512,-500.0,0.00017973,2]
[404087321,1769802644521,-500.0,0.00017973,2]
[404087322,1769802644529,-150.0,0.00017973,2]
[404087323,1769802644537,-15974.45,0.0001799,2]
[404087324,1769802644545,-15974.45,0.0001799,2]
[404087325,1769802644554,-165.31,0.0001799,2]
[404087326,1769802644562,-151.0,0.00017997,2]
[404087327,1769802644571,-600.36026673,0.00017998,2]
[404087328,1769802644579,-242.96860191,0.00017998,2]
[404087329,1769802644588,-187.19004078,0.00017999,2]
[404087330,1769802644596,-300.0,0.00017999,2]
[404087331,1769802644605,-72037.7814579,0.00017999,2]
[404087332,1769802644614,-3488.3524057,0.00017999,2]
[404087333,1769802644624,-300.0,0.00017999,2]
[404087334,1769802644633,-500.0,0.00017999,2]
[404087335,1769802644642,-500.0,0.00017999,2]
[404087336,1769802644651,-500.0,0.00017999,2]
[404087337,1769802644660,-500.0,0.00017999,2]
[404087338,1769802644670,-500.0,0.00017999,2]
[404087339,1769802644679,-926.435975,0.00017999,2]
[404087340,1769802644688,-300.0,0.00017999,2]
[404087341,1769802644697,-500.0,0.00017999,2]
[404087342,1769802644707,-212.8392473,0.00017999,2]
[404087343,1769802644716,-166.90812912,0.00017999,2]
[404087344,1769802644725,-500.0,0.00017999,2]
[404087345,1769802644734,-191.65534537,0.00017999,2]
[404087346,1769802644744,-256.61179892,0.00017999,2]
[404087347,1769802644753,-500.0,0.00017999,2]
[404087348,1769802644762,-319.1393421,0.00017999,2]
[404087349,1769802644771,-1441.0,0.00018,2]
[404087350,1769802644780,-2396910.63249333,0.00018,2]
[404087351,1769802644797,-405.31998745,0.00018,2]
[404087352,1769802644845,-346.12796108,0.00018,2]
[404087353,1769802644855,-6453.87658469,0.00018,2]
[404087355,1769802646302,-151.0,0.00016086,2]
[404087356,1769802646311,-151.0,0.00016086,2]
[404087357,1769802646320,-9.11452737,0.00018,2]
[404087358,1769802646402,-110620.38364646,0.00018,2]
[404087359,1769802646499,-651.0,0.00018,2]
[404087360,1769802646554,-2697.77897292,0.00018,2]
[404087361,1769802646565,-410.06556097,0.00018,2]
[404087362,1769802646608,-541.99999974,0.00018,2]
[404087364,1769802646620,-390.85000003,0.00018,2]
[404087367,1769802646631,-9290.67953845,0.00018,2]
[404087380,1769802967705,-4700.0,0.00043602,30]
[404087381,1769802967806,-500.0,0.00043602,120]
[404087382,1769802967903,-2000.0,0.00043602,31]
[404087383,1769802968001,-1620.39717087,0.00043602,120]
[404087384,1769802968098,-2458.84578962,0.00043602,120]
[404087385,1769802968198,-192000.0,0.00043602,120]
[404087386,1769802968299,-400.0,0.00043602,30]
[404087387,1769802968400,-400.0,0.00043602,30]
[404087388,1769802968497,-400.0,0.00043602,30]
[404087389,1769802968596,-400.0,0.00043602,30]
[404087390,1769802968699,-400.0,0.00043602,30]
[404087391,1769802968800,-400.0,0.00043602,30]
[404087392,1769802968901,-400.0,0.00043602,30]
[404087393,1769802969008,-400.0,0.00043602,30]
[404087394,1769802969109,-400.0,0.00043602,30]
[404087395,1769802969208,-400.0,0.00043602,30]
[404087396,1769802969308,-400.0,0.00043602,30]
[404087397,1769802969408,-400.0,0.00043602,30]
[404087398,1769802969503,-400.0,0.00043602,30]
[404087399,1769802969599,-400.0,0.00043602,30]
[404087400,1769802969695,-400.0,0.00043602,30]
[404087401,1769802969791,-400.0,0.00043602,30]
[404087402,1769802969887,-426.43075669,0.00043602,30]
[404087403,1769802969984,-1003.85001295,0.00043602,30]
[404087404,1769802970080,-32212.68307891,0.00043602,35]
[404087405,1769802970176,-2284.57364267,0.00043602,120]
[404087406,1769802970274,-1102.0,0.00043602,30]
[404087407,1769802970376,-1102.0,0.00043602,30]
[404087408,1769802970475,-1102.0,0.00043602,30]
[404087409,1769802970575,-1102.0,0.00043602,30]
[404087410,1769802970674,-1102.0,0.00043602,30]
[404087411,1769802970775,-1102.0,0.00043602,30]
[404087412,1769802970874,-1102.0,0.00043602,30]
[404087413,1769802970973,-1102.0,0.00043602,30]
[404087414,1769802971070,-1102.0,0.00043602,30]
[404087415,1769802971168,-1121.85204785,0.00043602,30]
[404087416,1769802971265,-501.12434931,0.00043602,120]
[404087417,1769802971360,-2015.21,0.00043602,120]
[404087418,1769802971455,-160.88186105,0.00043602,120]
[404087419,1769802971551,-160.88186105,0.00043602,120]
[404087420,1769802971648,-160.88186105,0.00043602,120]
[404087421,1769802971749,-160.88186105,0.00043602,120]
[404087422,1769802971847,-160.88186105,0.00043602,120]
[404087423,1769802971943,-160.88186105,0.00043602,120]
[404087424,1769802972037,-424.41,0.00043602,89]
[404087425,1769802972132,-430.78,0.00043602,89]
[404087426,1769802972232,-426.26,0.00043602,89]
[404087427,1769802972330,-431.93,0.00043602,89]
[404087428,1769802972429,-391.25,0.00043602,89]
[404087429,1769802972529,-160.88186102,0.00043602,120]
[404087430,1769802972629,-4000.0,0.00043602,120]